[Event "Titled Tuesday Blitz March 29 Late 2022"]
[White "Garagulya, Konstantin"]
[Black "Belous, Vladimir"]
[WhiteFideId "4128931"]
[BlackFideId "4174003"]
[WhiteElo "2329"]
[BlackElo "2534"]
[Result "0-1"]
[Round "01"]
[TimeControl "180+1"]
[Date "2022.03.29"]
[WhiteClock "0:00:33"]
[BlackClock "0:01:14"]

1. d4 {[%clk 0:03:00]}  Nf6 {[%clk 0:02:55]} 2. Nf3 {[%clk 0:03:01]}  g6 {[%clk 0:02:55]} 3. Nc3 {[%clk 0:02:59]}  d6 {[%clk 0:02:50]} 4. e4 {[%clk 0:02:58]}  a6 {[%clk 0:02:51]} 5. a4 {[%clk 0:02:57]}  Bg7 {[%clk 0:02:49]} 6. Bc4 {[%clk 0:02:57]}  O-O {[%clk 0:02:48]} 7. e5 {[%clk 0:02:58]}  dxe5 {[%clk 0:02:41]} 8. Nxe5 {[%clk 0:02:59]}  Nbd7 {[%clk 0:02:40]} 9. Nxd7 {[%clk 0:02:58]}  Bxd7 {[%clk 0:02:38]} 10. O-O {[%clk 0:02:58]}  Bg4 {[%clk 0:02:31]} 11. f3 {[%clk 0:02:57]}  Bf5 {[%clk 0:02:30]} 12. Re1 {[%clk 0:02:53]}  Qd6 {[%clk 0:02:22]} 13. Be3 {[%clk 0:02:47]}  Rad8 {[%clk 0:02:22]} 14. Qe2 {[%clk 0:02:46]}  e5 {[%clk 0:02:09]} 15. Rad1 {[%clk 0:02:41]}  e4 {[%clk 0:01:55]} 16. Nxe4 {[%clk 0:02:09]}  Nxe4 {[%clk 0:01:53]} 17. fxe4 {[%clk 0:02:09]}  Bxe4 {[%clk 0:01:54]} 18. Bg5 {[%clk 0:01:22]}  Rde8 {[%clk 0:01:46]} 19. c3 {[%clk 0:01:12]}  h6 {[%clk 0:01:34]} 20. Bh4 {[%clk 0:01:10]}  Kh7 {[%clk 0:01:32]} 21. Bg3 {[%clk 0:01:06]}  Qc6 {[%clk 0:01:30]} 22. d5 {[%clk 0:01:03]}  Qxa4 {[%clk 0:01:24]} 23. Bxc7 {[%clk 0:00:57]}  Bxd5 {[%clk 0:01:19]} 24. Qxe8 {[%clk 0:00:31]}  Rxe8 {[%clk 0:01:17]} 25. Bxd5 {[%clk 0:00:32]}  Rxe1+ {[%clk 0:01:14]} 26. Rxe1 {[%clk 0:00:33]}  Qd7 {[%clk 0:01:14]} 0-1


[Site "https://www.chess.com"]

[Event "Titled Tuesday Blitz March 29 Late 2022"]
[White "Golubev, Mikhail"]
[Black "Dreev, Aleksey"]
[WhiteFideId "14100983"]
[BlackFideId "4100107"]
[WhiteElo "2374"]
[BlackElo "2625"]
[Result "0-1"]
[Round "01"]
[TimeControl "180+1"]
[Date "2022.03.29"]
[WhiteClock "0:00:06"]
[BlackClock "0:00:13"]

1. e4 {[%clk 0:03:00]}  c5 {[%clk 0:02:58]} 2. Nf3 {[%clk 0:03:00]}  e6 {[%clk 0:02:59]} 3. d4 {[%clk 0:03:00]}  cxd4 {[%clk 0:02:59]} 4. Nxd4 {[%clk 0:02:59]}  Nf6 {[%clk 0:03:00]} 5. Nc3 {[%clk 0:02:59]}  Nc6 {[%clk 0:03:00]} 6. Ndb5 {[%clk 0:02:53]}  Bc5 {[%clk 0:02:59]} 7. Bf4 {[%clk 0:02:49]}  O-O {[%clk 0:02:55]} 8. Bc7 {[%clk 0:02:49]}  Qe7 {[%clk 0:02:55]} 9. Bd6 {[%clk 0:02:47]}  Bxd6 {[%clk 0:02:55]} 10. Qxd6 {[%clk 0:02:47]}  Qd8 {[%clk 0:02:55]} 11. O-O-O {[%clk 0:02:47]}  a6 {[%clk 0:02:51]} 12. Nd4 {[%clk 0:02:46]}  Ne7 {[%clk 0:02:51]} 13. h4 {[%clk 0:02:38]}  b5 {[%clk 0:02:43]} 14. h5 {[%clk 0:02:33]}  Ne8 {[%clk 0:02:34]} 15. Qg3 {[%clk 0:02:22]}  h6 {[%clk 0:02:32]} 16. e5 {[%clk 0:02:17]}  Bb7 {[%clk 0:02:30]} 17. Bd3 {[%clk 0:02:16]}  Rc8 {[%clk 0:02:04]} 18. Ne4 {[%clk 0:02:11]}  Qa5 {[%clk 0:01:19]} 19. Kb1 {[%clk 0:02:11]}  Bd5 {[%clk 0:01:14]} 20. Nf6+ {[%clk 0:02:06]}  Kh8 {[%clk 0:01:07]} 21. Nxd5 {[%clk 0:02:04]}  Nxd5 {[%clk 0:01:05]} 22. Nb3 {[%clk 0:02:00]}  Qc7 {[%clk 0:01:04]} 23. Be4 {[%clk 0:01:20]}  Ne7 {[%clk 0:01:01]} 24. Qh4 {[%clk 0:01:07]}  f6 {[%clk 0:00:54]} 25. exf6 {[%clk 0:00:57]}  Nxf6 {[%clk 0:00:54]} 26. Bd3 {[%clk 0:00:56]}  Ned5 {[%clk 0:00:51]} 27. Rh2 {[%clk 0:00:43]}  a5 {[%clk 0:00:47]} 28. Rh3 {[%clk 0:00:41]}  a4 {[%clk 0:00:41]} 29. Nd4 {[%clk 0:00:41]}  b4 {[%clk 0:00:42]} 30. Nb5 {[%clk 0:00:14]}  Qc5 {[%clk 0:00:37]} 31. Qg3 {[%clk 0:00:11]}  a3 {[%clk 0:00:34]} 32. Qg6 {[%clk 0:00:09]}  axb2 {[%clk 0:00:26]} 33. Rf3 {[%clk 0:00:07]}  Ne7 {[%clk 0:00:26]} 34. Qg3 {[%clk 0:00:06]}  Nfd5 {[%clk 0:00:13]} 0-1


[Site "https://www.chess.com"]

[Event "Titled Tuesday Blitz March 29 Late 2022"]
[White "Gurevich, Dmitry"]
[Black "Meza, Anahi"]
[WhiteFideId "2000407"]
[BlackFideId "111325"]
[WhiteElo "2506"]
[BlackElo "1968"]
[Result "1-0"]
[Round "01"]
[TimeControl "180+1"]
[Date "2022.03.30"]
[WhiteClock "0:01:12"]
[BlackClock "0:00:09"]

1. d4 {[%clk 0:02:59]}  Nf6 {[%clk 0:02:57]} 2. c4 {[%clk 0:02:59]}  g6 {[%clk 0:02:55]} 3. Nc3 {[%clk 0:02:59]}  Bg7 {[%clk 0:02:55]} 4. e4 {[%clk 0:02:58]}  O-O {[%clk 0:02:56]} 5. Nf3 {[%clk 0:02:58]}  d6 {[%clk 0:02:54]} 6. Be2 {[%clk 0:02:59]}  Nbd7 {[%clk 0:02:49]} 7. O-O {[%clk 0:02:58]}  e5 {[%clk 0:02:50]} 8. Be3 {[%clk 0:02:58]}  a5 {[%clk 0:02:46]} 9. Qc2 {[%clk 0:02:50]}  exd4 {[%clk 0:02:32]} 10. Nxd4 {[%clk 0:02:48]}  Nc5 {[%clk 0:02:32]} 11. f3 {[%clk 0:02:48]}  Re8 {[%clk 0:02:19]} 12. Rad1 {[%clk 0:02:47]}  Bd7 {[%clk 0:02:09]} 13. Ndb5 {[%clk 0:02:43]}  Nh5 {[%clk 0:02:00]} 14. Nd5 {[%clk 0:02:21]}  c6 {[%clk 0:01:39]} 15. Nxd6 {[%clk 0:02:17]}  cxd5 {[%clk 0:01:22]} 16. Nxe8 {[%clk 0:02:15]}  Qxe8 {[%clk 0:01:18]} 17. Bxc5 {[%clk 0:02:10]}  dxe4 {[%clk 0:01:18]} 18. f4 {[%clk 0:02:03]}  Rc8 {[%clk 0:01:07]} 19. Be3 {[%clk 0:02:00]}  a4 {[%clk 0:00:39]} 20. Bxh5 {[%clk 0:01:56]}  gxh5 {[%clk 0:00:38]} 21. h3 {[%clk 0:01:57]}  Qe6 {[%clk 0:00:32]} 22. b3 {[%clk 0:01:54]}  Bc6 {[%clk 0:00:25]} 23. Qd2 {[%clk 0:01:52]}  Qg6 {[%clk 0:00:23]} 24. Qf2 {[%clk 0:01:41]}  axb3 {[%clk 0:00:18]} 25. axb3 {[%clk 0:01:40]}  Ra8 {[%clk 0:00:18]} 26. Rd2 {[%clk 0:01:37]}  h6 {[%clk 0:00:17]} 27. f5 {[%clk 0:01:35]}  Qf6 {[%clk 0:00:17]} 28. Bd4 {[%clk 0:01:31]}  Qg5 {[%clk 0:00:17]} 29. Be3 {[%clk 0:01:27]}  Qf6 {[%clk 0:00:15]} 30. Rfd1 {[%clk 0:01:27]}  Kh7 {[%clk 0:00:13]} 31. Rd6 {[%clk 0:01:24]}  Qc3 {[%clk 0:00:12]} 32. f6 {[%clk 0:01:22]}  Bf8 {[%clk 0:00:11]} 33. Rd8 {[%clk 0:01:15]}  Rxd8 {[%clk 0:00:10]} 34. Rxd8 {[%clk 0:01:13]}  Bb4 {[%clk 0:00:09]} 35. Qf5# {[%clk 0:01:12]} 1-0


[Site "https://www.chess.com"]

[Event "Titled Tuesday Blitz March 29 Late 2022"]
[White "Hjartarson, Johann"]
[Black "Rodchenkov, Vitaly"]
[WhiteFideId "2300044"]
[BlackFideId "4152964"]
[WhiteElo "2450"]
[BlackElo "2337"]
[Result "1-0"]
[Round "01"]
[TimeControl "180+1"]
[Date "2022.03.30"]
[WhiteClock "0:00:49"]
[BlackClock "0:00:40"]

1. e4 {[%clk 0:03:00]}  c5 {[%clk 0:02:59]} 2. Nf3 {[%clk 0:02:59]}  d6 {[%clk 0:02:59]} 3. d4 {[%clk 0:02:57]}  cxd4 {[%clk 0:03:00]} 4. Nxd4 {[%clk 0:02:57]}  Nf6 {[%clk 0:03:00]} 5. Nc3 {[%clk 0:02:57]}  a6 {[%clk 0:03:00]} 6. h3 {[%clk 0:02:56]}  e6 {[%clk 0:02:59]} 7. g4 {[%clk 0:02:55]}  d5 {[%clk 0:03:00]} 8. exd5 {[%clk 0:02:49]}  Nxd5 {[%clk 0:02:59]} 9. Bg2 {[%clk 0:02:47]}  Bb4 {[%clk 0:02:50]} 10. Ne2 {[%clk 0:02:41]}  O-O {[%clk 0:02:47]} 11. O-O {[%clk 0:02:39]}  Nxc3 {[%clk 0:02:46]} 12. Nxc3 {[%clk 0:02:38]}  Bxc3 {[%clk 0:02:45]} 13. bxc3 {[%clk 0:02:38]}  Nc6 {[%clk 0:02:45]} 14. Ba3 {[%clk 0:02:36]}  Re8 {[%clk 0:02:42]} 15. Qxd8 {[%clk 0:02:34]}  Rxd8 {[%clk 0:02:42]} 16. Rab1 {[%clk 0:02:32]}  e5 {[%clk 0:02:37]} 17. Rb6 {[%clk 0:02:30]}  Na5 {[%clk 0:02:25]} 18. Bc5 {[%clk 0:02:20]}  Be6 {[%clk 0:02:23]} 19. Bb4 {[%clk 0:02:18]}  Nc4 {[%clk 0:01:57]} 20. Rxb7 {[%clk 0:02:16]}  a5 {[%clk 0:01:56]} 21. Be7 {[%clk 0:02:10]}  Re8 {[%clk 0:01:55]} 22. Rd1 {[%clk 0:02:00]}  Rac8 {[%clk 0:01:53]} 23. a4 {[%clk 0:01:57]}  h6 {[%clk 0:01:49]} 24. Be4 {[%clk 0:01:55]}  h5 {[%clk 0:01:22]} 25. Bf5 {[%clk 0:01:47]}  Bxf5 {[%clk 0:01:20]} 26. gxf5 {[%clk 0:01:47]}  Nb6 {[%clk 0:01:00]} 27. Rxb6 {[%clk 0:01:27]}  Rxe7 {[%clk 0:01:00]} 28. Rd3 {[%clk 0:01:27]}  Rc4 {[%clk 0:00:58]} 29. Rd8+ {[%clk 0:01:22]}  Kh7 {[%clk 0:00:58]} 30. Rbb8 {[%clk 0:01:00]}  Kh6 {[%clk 0:00:46]} 31. Rh8+ {[%clk 0:00:58]}  Kg5 {[%clk 0:00:46]} 32. Rbg8 {[%clk 0:00:56]}  Kf6 {[%clk 0:00:44]} 33. Rxh5 {[%clk 0:00:55]}  Rxa4 {[%clk 0:00:44]} 34. Ra8 {[%clk 0:00:51]}  e4 {[%clk 0:00:40]} 35. Ra6+ {[%clk 0:00:49]} 1-0


[Site "https://www.chess.com"]

[Event "Titled Tuesday Blitz March 29 Late 2022"]
[White "Jarocka, Liwia"]
[Black "Yanchenko, Roman"]
[WhiteFideId "21807558"]
[BlackFideId "4137329"]
[WhiteElo "1896"]
[BlackElo "2514"]
[Result "0-1"]
[Round "01"]
[TimeControl "180+1"]
[Date "2022.03.30"]
[WhiteClock "0:00:20"]
[BlackClock "0:00:33"]

1. c4 {[%clk 0:03:00]}  e6 {[%clk 0:02:48]} 2. Nc3 {[%clk 0:02:59]}  d5 {[%clk 0:02:49]} 3. cxd5 {[%clk 0:02:59]}  exd5 {[%clk 0:02:50]} 4. d4 {[%clk 0:02:58]}  c6 {[%clk 0:02:49]} 5. Nf3 {[%clk 0:02:57]}  Bd6 {[%clk 0:02:49]} 6. Bg5 {[%clk 0:02:56]}  Ne7 {[%clk 0:02:48]} 7. Bh4 {[%clk 0:02:56]}  O-O {[%clk 0:02:47]} 8. e3 {[%clk 0:02:54]}  Bf5 {[%clk 0:02:47]} 9. Bd3 {[%clk 0:02:52]}  Bxd3 {[%clk 0:02:46]} 10. Qxd3 {[%clk 0:02:51]}  Nd7 {[%clk 0:02:46]} 11. Bg3 {[%clk 0:02:51]}  Qb8 {[%clk 0:02:44]} 12. O-O {[%clk 0:02:49]}  Re8 {[%clk 0:02:38]} 13. b4 {[%clk 0:02:48]}  a6 {[%clk 0:02:36]} 14. a4 {[%clk 0:02:48]}  Nb6 {[%clk 0:02:36]} 15. b5 {[%clk 0:02:45]}  Bxg3 {[%clk 0:02:35]} 16. hxg3 {[%clk 0:02:44]}  cxb5 {[%clk 0:02:31]} 17. axb5 {[%clk 0:02:43]}  a5 {[%clk 0:02:32]} 18. Na4 {[%clk 0:02:36]}  Nc4 {[%clk 0:02:28]} 19. Nc5 {[%clk 0:02:29]}  Nc8 {[%clk 0:02:24]} 20. Rfb1 {[%clk 0:02:08]}  b6 {[%clk 0:02:21]} 21. Nd7 {[%clk 0:02:05]}  Qc7 {[%clk 0:02:20]} 22. Nde5 {[%clk 0:02:04]}  N8d6 {[%clk 0:02:19]} 23. Ng5 {[%clk 0:01:46]}  g6 {[%clk 0:02:02]} 24. Ng4 {[%clk 0:01:42]}  Kg7 {[%clk 0:01:58]} 25. Nh3 {[%clk 0:01:40]}  Ne4 {[%clk 0:01:57]} 26. Nf4 {[%clk 0:01:36]}  f5 {[%clk 0:01:55]} 27. Nh2 {[%clk 0:01:29]}  Qd6 {[%clk 0:01:48]} 28. Rc1 {[%clk 0:01:28]}  Rac8 {[%clk 0:01:26]} 29. g4 {[%clk 0:01:18]}  Qd7 {[%clk 0:00:58]} 30. gxf5 {[%clk 0:01:10]}  Qxf5 {[%clk 0:00:57]} 31. Nf3 {[%clk 0:01:07]}  g5 {[%clk 0:00:41]} 32. Nh3 {[%clk 0:00:46]}  g4 {[%clk 0:00:40]} 33. Nh4 {[%clk 0:00:46]}  Qf6 {[%clk 0:00:39]} 34. Nf4 {[%clk 0:00:26]}  Qxh4 {[%clk 0:00:38]} 35. Rc2 {[%clk 0:00:23]}  g3 {[%clk 0:00:35]} 36. f3 {[%clk 0:00:22]}  Nf2 {[%clk 0:00:33]} 37. Qf5 {[%clk 0:00:20]}  Qh1# {[%clk 0:00:33]} 0-1


[Site "https://www.chess.com"]

[Event "Titled Tuesday Blitz March 29 Late 2022"]
[White "Jary, Sergey"]
[Black "Bures, Vit"]
[WhiteFideId "14110350"]
[BlackFideId "309052"]
[WhiteElo "2260"]
[BlackElo "2118"]
[Result "0-1"]
[Round "01"]
[TimeControl "180+1"]
[Date "2022.03.30"]
[WhiteClock "0:00:23"]
[BlackClock "0:00:04"]

1. e4 {[%clk 0:02:59]}  e5 {[%clk 0:03:00]} 2. Nf3 {[%clk 0:02:59]}  Nc6 {[%clk 0:03:00]} 3. d4 {[%clk 0:02:59]}  exd4 {[%clk 0:03:00]} 4. Bc4 {[%clk 0:03:00]}  Bc5 {[%clk 0:03:00]} 5. c3 {[%clk 0:02:59]}  Nf6 {[%clk 0:03:00]} 6. cxd4 {[%clk 0:02:56]}  Bb4+ {[%clk 0:02:59]} 7. Nbd2 {[%clk 0:02:46]}  Nxe4 {[%clk 0:02:57]} 8. O-O {[%clk 0:02:46]}  d5 {[%clk 0:02:50]} 9. Bb5 {[%clk 0:02:35]}  O-O {[%clk 0:02:47]} 10. Bxc6 {[%clk 0:02:30]}  bxc6 {[%clk 0:02:46]} 11. Ne5 {[%clk 0:02:30]}  Qf6 {[%clk 0:02:32]} 12. Nxe4 {[%clk 0:02:19]}  dxe4 {[%clk 0:02:32]} 13. Qc2 {[%clk 0:02:14]}  Bf5 {[%clk 0:02:25]} 14. Qxc6 {[%clk 0:02:12]}  Qxc6 {[%clk 0:02:23]} 15. Nxc6 {[%clk 0:02:13]}  Bd6 {[%clk 0:02:22]} 16. Be3 {[%clk 0:02:09]}  Rfe8 {[%clk 0:02:11]} 17. h3 {[%clk 0:02:06]}  h6 {[%clk 0:02:08]} 18. Rac1 {[%clk 0:02:01]}  a5 {[%clk 0:02:06]} 19. d5 {[%clk 0:01:56]}  a4 {[%clk 0:02:00]} 20. a3 {[%clk 0:01:54]}  Bd7 {[%clk 0:01:46]} 21. Rc4 {[%clk 0:01:54]}  f5 {[%clk 0:01:45]} 22. Rfc1 {[%clk 0:01:49]}  f4 {[%clk 0:01:45]} 23. Bd4 {[%clk 0:01:49]}  e3 {[%clk 0:01:45]} 24. fxe3 {[%clk 0:01:48]}  fxe3 {[%clk 0:01:46]} 25. Re1 {[%clk 0:01:48]}  e2 {[%clk 0:01:08]} 26. Rc2 {[%clk 0:01:47]}  Bxc6 {[%clk 0:01:00]} 27. dxc6 {[%clk 0:01:47]}  Re4 {[%clk 0:01:00]} 28. Bc3 {[%clk 0:01:44]}  Rae8 {[%clk 0:00:58]} 29. Kf2 {[%clk 0:01:30]}  Bc5+ {[%clk 0:00:42]} 30. Kg3 {[%clk 0:01:26]}  Re3+ {[%clk 0:00:36]} 31. Kh2 {[%clk 0:01:22]}  Bd6+ {[%clk 0:00:36]} 32. Kg1 {[%clk 0:01:16]}  Bg3 {[%clk 0:00:35]} 33. Rcc1 {[%clk 0:01:05]}  Bxe1 {[%clk 0:00:33]} 34. Rxe1 {[%clk 0:01:05]}  R8e6 {[%clk 0:00:26]} 35. Kf2 {[%clk 0:01:05]}  R3e4 {[%clk 0:00:23]} 36. Kf3 {[%clk 0:01:04]}  g5 {[%clk 0:00:22]} 37. g4 {[%clk 0:01:01]}  Kf7 {[%clk 0:00:05]} 38. Bd2 {[%clk 0:00:59]}  Ke7 {[%clk 0:00:03]} 39. Bb4+ {[%clk 0:00:57]}  Kd8 {[%clk 0:00:02]} 40. Kf2 {[%clk 0:00:57]}  Kc8 {[%clk 0:00:02]} 41. Rc1 {[%clk 0:00:53]}  Rf4+ {[%clk 0:00:02]} 42. Kg2 {[%clk 0:00:52]}  Rf1 {[%clk 0:00:01]} 43. Rxf1 {[%clk 0:00:51]}  exf1=Q+ {[%clk 0:00:02]} 44. Kxf1 {[%clk 0:00:52]}  Re3 {[%clk 0:00:02]} 45. Kg2 {[%clk 0:00:51]}  Rb3 {[%clk 0:00:02]} 46. Bc3 {[%clk 0:00:51]}  Rb6 {[%clk 0:00:02]} 47. Kf3 {[%clk 0:00:51]}  Rxc6 {[%clk 0:00:03]} 48. Ke4 {[%clk 0:00:50]}  Kd7 {[%clk 0:00:03]} 49. Kd5 {[%clk 0:00:49]}  Re6 {[%clk 0:00:03]} 50. Kd4 {[%clk 0:00:47]}  Re2 {[%clk 0:00:03]} 51. Kc4 {[%clk 0:00:44]}  Rh2 {[%clk 0:00:03]} 52. Kb4 {[%clk 0:00:41]}  Rxh3 {[%clk 0:00:04]} 53. Kxa4 {[%clk 0:00:42]}  Rg3 {[%clk 0:00:04]} 54. Kb5 {[%clk 0:00:39]}  Rxg4 {[%clk 0:00:05]} 55. Bg7 {[%clk 0:00:39]}  h5 {[%clk 0:00:05]} 56. a4 {[%clk 0:00:40]}  Kc8 {[%clk 0:00:04]} 57. a5 {[%clk 0:00:40]}  Kb7 {[%clk 0:00:05]} 58. a6+ {[%clk 0:00:39]}  Ka8 {[%clk 0:00:05]} 59. Be5 {[%clk 0:00:38]}  h4 {[%clk 0:00:05]} 60. Bxc7 {[%clk 0:00:37]}  h3 {[%clk 0:00:05]} 61. Bb6 {[%clk 0:00:36]}  Rg2 {[%clk 0:00:05]} 62. b4 {[%clk 0:00:34]}  h2 {[%clk 0:00:05]} 63. a7 {[%clk 0:00:23]}  h1=Q {[%clk 0:00:06]} 64. Ka6 {[%clk 0:00:23]}  Qa1+ {[%clk 0:00:05]} 65. Ba5 {[%clk 0:00:24]}  Qf6+ {[%clk 0:00:04]} 66. Kb5 {[%clk 0:00:23]}  Rb2 {[%clk 0:00:03]} 67. Ka4 {[%clk 0:00:21]}  Qc6+ {[%clk 0:00:02]} 68. Ka3 {[%clk 0:00:22]}  Qc3+ {[%clk 0:00:03]} 69. Ka4 {[%clk 0:00:22]}  Qb3+ {[%clk 0:00:03]} 70. Kb5 {[%clk 0:00:23]}  Ra2 {[%clk 0:00:03]} 71. Ka6 {[%clk 0:00:23]}  Ra4 {[%clk 0:00:03]} 72. Kb5 {[%clk 0:00:23]}  Rxa5+ {[%clk 0:00:03]} 73. Kxa5 {[%clk 0:00:21]}  Kxa7 {[%clk 0:00:03]} 74. Kb5 {[%clk 0:00:22]}  Qe6 {[%clk 0:00:03]} 75. Kc5 {[%clk 0:00:22]}  g4 {[%clk 0:00:04]} 76. b5 {[%clk 0:00:23]}  g3 {[%clk 0:00:05]} 77. b6+ {[%clk 0:00:23]}  Qxb6+ {[%clk 0:00:04]} 0-1


[Site "https://www.chess.com"]

[Event "Titled Tuesday Blitz March 29 Late 2022"]
[White "Kadric, Denis"]
[Black "Moral Garcia, Serafin"]
[WhiteFideId "14403803"]
[BlackFideId "2201925"]
[WhiteElo "2772"]
[BlackElo "2447"]
[Result "1/2-1/2"]
[Round "01"]
[TimeControl "180+1"]
[Date "2022.03.30"]
[WhiteClock "0:00:14"]
[BlackClock "0:00:15"]

1. e4 {[%clk 0:02:58]}  e5 {[%clk 0:02:58]} 2. Nf3 {[%clk 0:02:57]}  Nc6 {[%clk 0:02:58]} 3. Nc3 {[%clk 0:02:58]}  Nf6 {[%clk 0:02:58]} 4. Bb5 {[%clk 0:02:58]}  Bd6 {[%clk 0:02:57]} 5. a3 {[%clk 0:02:58]}  O-O {[%clk 0:02:55]} 6. d3 {[%clk 0:02:58]}  Re8 {[%clk 0:02:55]} 7. g4 {[%clk 0:02:57]}  a6 {[%clk 0:02:50]} 8. Bc4 {[%clk 0:02:57]}  Bc5 {[%clk 0:02:40]} 9. g5 {[%clk 0:02:57]}  Nh5 {[%clk 0:02:40]} 10. Nh4 {[%clk 0:02:33]}  g6 {[%clk 0:02:37]} 11. Nf5 {[%clk 0:02:33]}  Rf8 {[%clk 0:02:22]} 12. Nd5 {[%clk 0:02:16]}  d6 {[%clk 0:02:20]} 13. Ng3 {[%clk 0:02:15]}  Ng7 {[%clk 0:02:05]} 14. h4 {[%clk 0:02:07]}  h5 {[%clk 0:01:43]} 15. gxh6 {[%clk 0:01:57]}  Ne6 {[%clk 0:01:39]} 16. h5 {[%clk 0:01:57]}  g5 {[%clk 0:01:39]} 17. Nf5 {[%clk 0:01:51]}  Kh7 {[%clk 0:01:38]} 18. c3 {[%clk 0:01:49]}  b5 {[%clk 0:01:26]} 19. Ba2 {[%clk 0:01:49]}  Ba7 {[%clk 0:01:23]} 20. Be3 {[%clk 0:01:49]}  Nf4 {[%clk 0:01:18]} 21. Bxa7 {[%clk 0:01:15]}  Rxa7 {[%clk 0:01:16]} 22. Nde3 {[%clk 0:01:15]}  Ne7 {[%clk 0:01:13]} 23. Ng3 {[%clk 0:01:01]}  Be6 {[%clk 0:01:10]} 24. Bxe6 {[%clk 0:00:51]}  fxe6 {[%clk 0:01:08]} 25. Qd2 {[%clk 0:00:46]}  Ng8 {[%clk 0:00:49]} 26. O-O-O {[%clk 0:00:43]}  Nxh6 {[%clk 0:00:45]} 27. d4 {[%clk 0:00:44]}  Qf6 {[%clk 0:00:42]} 28. Kb1 {[%clk 0:00:29]}  Raa8 {[%clk 0:00:41]} 29. dxe5 {[%clk 0:00:26]}  Qxe5 {[%clk 0:00:40]} 30. Nc2 {[%clk 0:00:26]}  Rad8 {[%clk 0:00:35]} 31. Nb4 {[%clk 0:00:26]}  Qc5 {[%clk 0:00:30]} 32. Nxa6 {[%clk 0:00:25]}  Qb6 {[%clk 0:00:30]} 33. Nb4 {[%clk 0:00:26]}  c5 {[%clk 0:00:30]} 34. Nd3 {[%clk 0:00:26]}  c4 {[%clk 0:00:27]} 35. Nxf4 {[%clk 0:00:26]}  Rxf4 {[%clk 0:00:27]} 36. Rh2 {[%clk 0:00:24]}  d5 {[%clk 0:00:23]} 37. Qc2 {[%clk 0:00:22]}  Kg7 {[%clk 0:00:19]} 38. exd5 {[%clk 0:00:21]}  Nf5 {[%clk 0:00:19]} 39. h6+ {[%clk 0:00:20]}  Kh7 {[%clk 0:00:18]} 40. dxe6 {[%clk 0:00:20]}  Rxd1+ {[%clk 0:00:18]} 41. Qxd1 {[%clk 0:00:21]}  Qxe6 {[%clk 0:00:18]} 42. Qc2 {[%clk 0:00:22]}  Qg6 {[%clk 0:00:18]} 43. Nxf5 {[%clk 0:00:21]}  Qxf5 {[%clk 0:00:18]} 44. Qxf5+ {[%clk 0:00:21]}  Rxf5 {[%clk 0:00:19]} 45. Ka2 {[%clk 0:00:21]}  Rf3 {[%clk 0:00:17]} 46. a4 {[%clk 0:00:22]}  bxa4 {[%clk 0:00:17]} 47. Ka3 {[%clk 0:00:22]}  Rf6 {[%clk 0:00:17]} 48. Kxa4 {[%clk 0:00:23]}  Rb6 {[%clk 0:00:18]} 49. f3 {[%clk 0:00:21]}  Rf6 {[%clk 0:00:17]} 50. Rh3 {[%clk 0:00:18]}  Rf4 {[%clk 0:00:17]} 51. Kb4 {[%clk 0:00:18]}  Rh4 {[%clk 0:00:17]} 52. Rg3 {[%clk 0:00:18]}  Kxh6 {[%clk 0:00:17]} 53. b3 {[%clk 0:00:18]}  cxb3+ {[%clk 0:00:17]} 54. Kxb3 {[%clk 0:00:19]}  Kg6 {[%clk 0:00:18]} 55. c4 {[%clk 0:00:19]}  Kf5 {[%clk 0:00:18]} 56. c5 {[%clk 0:00:17]}  Rh8 {[%clk 0:00:18]} 57. Kc4 {[%clk 0:00:16]}  Rg8 {[%clk 0:00:18]} 58. Rg4 {[%clk 0:00:15]}  Re8 {[%clk 0:00:17]} 59. c6 {[%clk 0:00:13]}  Re3 {[%clk 0:00:17]} 60. Kc5 {[%clk 0:00:14]}  Rxf3 {[%clk 0:00:17]} 61. Rc4 {[%clk 0:00:14]}  Re3 {[%clk 0:00:17]} 62. c7 {[%clk 0:00:15]}  Re8 {[%clk 0:00:17]} 63. Kd6 {[%clk 0:00:15]}  g4 {[%clk 0:00:16]} 64. Kd7 {[%clk 0:00:16]}  Rh8 {[%clk 0:00:16]} 65. c8=Q {[%clk 0:00:16]}  Rxc8 {[%clk 0:00:16]} 66. Kxc8 {[%clk 0:00:17]}  g3 {[%clk 0:00:16]} 67. Rc7 {[%clk 0:00:13]}  Kf4 {[%clk 0:00:15]} 68. Rg7 {[%clk 0:00:14]}  Kf3 {[%clk 0:00:15]} 69. Rxg3+ {[%clk 0:00:14]}  Kxg3 {[%clk 0:00:15]} 1/2-1/2


[Site "https://www.chess.com"]

[Event "Titled Tuesday Blitz March 29 Late 2022"]
[White "Kosakowski, Jakub"]
[Black "Fernandez Siles, Luis"]
[WhiteFideId "1185080"]
[BlackFideId "2209420"]
[WhiteElo "2476"]
[BlackElo "2212"]
[Result "1-0"]
[Round "01"]
[TimeControl "180+1"]
[Date "2022.03.30"]
[WhiteClock "0:01:47"]
[BlackClock "0:01:19"]

1. e4 {[%clk 0:02:59]}  e5 {[%clk 0:02:56]} 2. Nf3 {[%clk 0:02:59]}  Nc6 {[%clk 0:02:56]} 3. Bb5 {[%clk 0:02:58]}  a6 {[%clk 0:02:56]} 4. Ba4 {[%clk 0:02:59]}  Nf6 {[%clk 0:02:57]} 5. O-O {[%clk 0:02:59]}  Be7 {[%clk 0:02:57]} 6. Re1 {[%clk 0:02:59]}  b5 {[%clk 0:02:58]} 7. Bb3 {[%clk 0:02:59]}  d6 {[%clk 0:02:58]} 8. c3 {[%clk 0:02:59]}  O-O {[%clk 0:02:57]} 9. h3 {[%clk 0:03:00]}  Nb8 {[%clk 0:02:56]} 10. d4 {[%clk 0:02:59]}  Nbd7 {[%clk 0:02:57]} 11. c4 {[%clk 0:02:58]}  Bb7 {[%clk 0:02:42]} 12. Nc3 {[%clk 0:02:50]}  b4 {[%clk 0:02:38]} 13. Nd5 {[%clk 0:02:48]}  Nxd5 {[%clk 0:02:36]} 14. cxd5 {[%clk 0:02:46]}  exd4 {[%clk 0:02:20]} 15. Nxd4 {[%clk 0:02:45]}  Nc5 {[%clk 0:02:20]} 16. Bc2 {[%clk 0:02:45]}  Bf6 {[%clk 0:02:18]} 17. Be3 {[%clk 0:02:32]}  Re8 {[%clk 0:02:17]} 18. Qf3 {[%clk 0:02:28]}  a5 {[%clk 0:02:05]} 19. Rad1 {[%clk 0:02:25]}  a4 {[%clk 0:02:04]} 20. b3 {[%clk 0:02:08]}  axb3 {[%clk 0:01:59]} 21. axb3 {[%clk 0:02:08]}  Qd7 {[%clk 0:01:57]} 22. Nf5 {[%clk 0:02:06]}  Bc3 {[%clk 0:01:52]} 23. Bd4 {[%clk 0:02:03]}  Bxd4 {[%clk 0:01:39]} 24. Rxd4 {[%clk 0:02:04]}  Ra2 {[%clk 0:01:33]} 25. Bb1 {[%clk 0:01:53]}  Rb2 {[%clk 0:01:26]} 26. Rxb4 {[%clk 0:01:53]}  Bxd5 {[%clk 0:01:21]} 27. Qc3 {[%clk 0:01:48]}  Rxb1 {[%clk 0:01:19]} 28. Qxg7# {[%clk 0:01:47]} 1-0


[Site "https://www.chess.com"]